[Event "*** Titled Tuesday Blitz"]
[Site "Chess.com"]
[Date "2020.12.29"]
[Round "4"]
[White "catalin009"]
[Black "1g41-0"]
[Result "0-1"]
[WhiteElo "2411"]
[BlackElo "2620"]
[TimeControl "180+1"]
[EndTime "10:38:57 PST"]
[Termination "1g41-0 won by resignation"]

1. e4 {[%clk 0:03:00.9]} 1... e5 {[%clk 0:02:55.6]} 2. Nf3 {[%clk 0:03:00.7]}
2... Nc6 {[%clk 0:02:55.4]} 3. Bb5 {[%clk 0:03:01.3]} 3... a6 {[%clk 0:02:55.3]}
4. Ba4 {[%clk 0:03:01.3]} 4... d6 {[%clk 0:02:51.4]} 5. O-O {[%clk 0:03:00.5]}
5... Bd7 {[%clk 0:02:52]} 6. c3 {[%clk 0:03:00]} 6... g6 {[%clk 0:02:52]} 7. d4
{[%clk 0:02:58.9]} 7... Bg7 {[%clk 0:02:52.2]} 8. Bg5 {[%clk 0:02:56.8]} 8... f6
{[%clk 0:02:48.1]} 9. Be3 {[%clk 0:02:56.8]} 9... Nh6 {[%clk 0:02:46.5]} 10. b4
{[%clk 0:02:41.7]} 10... O-O {[%clk 0:02:42.1]} 11. Bb3+ {[%clk 0:02:41.1]}
11... Kh8 {[%clk 0:02:42.1]} 12. h3 {[%clk 0:02:37.4]} 12... Nf7 {[%clk
0:02:32.8]} 13. Nbd2 {[%clk 0:02:24.4]} 13... f5 {[%clk 0:02:30.8]} 14. dxe5
{[%clk 0:02:17.7]} 14... Nfxe5 {[%clk 0:02:28.9]} 15. Nxe5 {[%clk 0:02:03.2]}
15... dxe5 {[%clk 0:02:27.4]} 16. exf5 {[%clk 0:01:31.4]} 16... gxf5 {[%clk
0:02:27]} 17. f4 {[%clk 0:01:32.1]} 17... e4 {[%clk 0:02:14.7]} 18. Rc1 {[%clk
0:01:22.9]} 18... Qe7 {[%clk 0:02:03.9]} 19. Nc4 {[%clk 0:01:20.1]} 19... Rfd8
{[%clk 0:02:00]} 20. Qh5 {[%clk 0:01:15.2]} 20... Qe8 {[%clk 0:01:54]} 21. Qh4
{[%clk 0:01:12.1]} 21... Be6 {[%clk 0:01:49.9]} 22. Bf2 {[%clk 0:00:57.8]} 22...
Bxc4 {[%clk 0:01:29.5]} 23. Bxc4 {[%clk 0:00:57.8]} 23... e3 {[%clk 0:01:17.4]}
24. Be1 {[%clk 0:00:50.6]} 24... Ne7 {[%clk 0:00:57]} 25. Qg5 {[%clk 0:00:30.2]}
25... Qf8 {[%clk 0:00:20.7]} 26. Rf3 {[%clk 0:00:20.4]} 26... Ng6 {[%clk
0:00:17.5]} 27. Rxe3 {[%clk 0:00:19.1]} 27... Bh6 {[%clk 0:00:17.5]} 28. Qh5
{[%clk 0:00:14.2]} 28... Bxf4 {[%clk 0:00:17.5]} 29. Bf2 {[%clk 0:00:13.2]}
29... Bxe3 {[%clk 0:00:13.8]} 30. Bxe3 {[%clk 0:00:14.1]} 30... Qf6 {[%clk
0:00:12.9]} 31. Rf1 {[%clk 0:00:12.5]} 31... f4 {[%clk 0:00:10.6]} 32. Bc5
{[%clk 0:00:05.5]} 32... b6 {[%clk 0:00:10]} 33. Bd4 {[%clk 0:00:03.6]} 33...
Rxd4 {[%clk 0:00:09.9]} 34. cxd4 {[%clk 0:00:04.5]} 34... Qxd4+ {[%clk
0:00:10.5]} 35. Kh2 {[%clk 0:00:04.3]} 35... Qxc4 {[%clk 0:00:11.1]} 36. Qf5
{[%clk 0:00:04.4]} 36... Rf8 {[%clk 0:00:10.4]} 37. Qd7 {[%clk 0:00:04.1]} 37...
Qxf1 {[%clk 0:00:10]} 0-1

[Event "*** Titled Tuesday Blitz"]
[Site "Chess.com"]
[Date "2020.12.29"]
[Round "4"]
[White "midedu"]
[Black "Pantata007"]
[Result "1-0"]
[WhiteElo "2121"]
[BlackElo "2279"]
[TimeControl "180+1"]
[EndTime "10:38:59 PST"]
[Termination "midedu won on time"]

1. e4 {[%clk 0:03:00.9]} 1... e5 {[%clk 0:02:58.9]} 2. Nf3 {[%clk 0:02:59.5]}
2... Nc6 {[%clk 0:02:58.9]} 3. Bc4 {[%clk 0:02:53.9]} 3... Bc5 {[%clk
0:02:58.3]} 4. c3 {[%clk 0:02:53.3]} 4... Nf6 {[%clk 0:02:57.8]} 5. d3 {[%clk
0:02:52.9]} 5... O-O {[%clk 0:02:56.3]} 6. O-O {[%clk 0:02:52.5]} 6... d6 {[%clk
0:02:56.4]} 7. Nbd2 {[%clk 0:02:52.3]} 7... a5 {[%clk 0:02:56.2]} 8. a4 {[%clk
0:02:51.6]} 8... Be6 {[%clk 0:02:51.6]} 9. Re1 {[%clk 0:02:51.4]} 9... Bxc4
{[%clk 0:02:30.4]} 10. Nxc4 {[%clk 0:02:50.5]} 10... h6 {[%clk 0:02:29.6]} 11.
Qb3 {[%clk 0:02:49.7]} 11... Qd7 {[%clk 0:02:25.9]} 12. Bd2 {[%clk 0:02:40.4]}
12... Rfe8 {[%clk 0:02:15.2]} 13. Rad1 {[%clk 0:02:39]} 13... Rab8 {[%clk
0:01:44.2]} 14. Bc1 {[%clk 0:02:37.2]} 14... Ba7 {[%clk 0:01:30.2]} 15. Be3
{[%clk 0:02:34.5]} 15... Bxe3 {[%clk 0:01:29]} 16. Nxe3 {[%clk 0:02:34.6]} 16...
Ne7 {[%clk 0:01:21.8]} 17. Qc2 {[%clk 0:02:19.4]} 17... c6 {[%clk 0:01:20.2]}
18. d4 {[%clk 0:02:18]} 18... Ng6 {[%clk 0:01:18.9]} 19. dxe5 {[%clk 0:02:12.9]}
19... Nxe5 {[%clk 0:01:18.6]} 20. Nxe5 {[%clk 0:02:10.4]} 20... Rxe5 {[%clk
0:01:18.8]} 21. Nc4 {[%clk 0:02:08.6]} 21... Re6 {[%clk 0:00:56.4]} 22. Nxa5
{[%clk 0:02:07.9]} 22... Rbe8 {[%clk 0:00:53.5]} 23. f3 {[%clk 0:02:07.1]} 23...
d5 {[%clk 0:00:53.1]} 24. Nb3 {[%clk 0:01:54.7]} 24... Qc7 {[%clk 0:00:39.6]}
25. Nc5 {[%clk 0:01:49.1]} 25... R6e7 {[%clk 0:00:36.3]} 26. e5 {[%clk
0:01:12.6]} 26... Rxe5 {[%clk 0:00:32.7]} 27. Rxe5 {[%clk 0:01:11.7]} 27... Rxe5
{[%clk 0:00:31.9]} 28. b4 {[%clk 0:01:10.1]} 28... Qe7 {[%clk 0:00:29.5]} 29.
Kf1 {[%clk 0:00:57.3]} 29... Nh5 {[%clk 0:00:10.8]} 30. Nd3 {[%clk 0:00:56.2]}
30... Re3 {[%clk 0:00:10]} 31. Qf2 {[%clk 0:00:42]} 31... g5 {[%clk 0:00:04.3]}
32. Re1 {[%clk 0:00:40.5]} 32... Rxe1+ {[%clk 0:00:03.7]} 33. Qxe1 {[%clk
0:00:40.3]} 33... Qf6 {[%clk 0:00:03.4]} 34. Qe5 {[%clk 0:00:40]} 34... Qxe5
{[%clk 0:00:02.1]} 35. Nxe5 {[%clk 0:00:39.6]} 35... Nf4 {[%clk 0:00:03]} 36. a5
{[%clk 0:00:35.6]} 36... Ne6 {[%clk 0:00:03.5]} 37. Ke2 {[%clk 0:00:34.7]} 37...
Kf8 {[%clk 0:00:03.9]} 38. Kd3 {[%clk 0:00:34.6]} 38... Ke7 {[%clk 0:00:04.2]}
39. g3 {[%clk 0:00:34.7]} 39... f6 {[%clk 0:00:02.9]} 40. Nxc6+ {[%clk 0:00:30]}
40... bxc6 {[%clk 0:00:01.9]} 41. a6 {[%clk 0:00:29.2]} 41... Nc7 {[%clk
0:00:02.4]} 42. a7 {[%clk 0:00:28.5]} 42... Kd6 {[%clk 0:00:02.9]} 43. c4 {[%clk
0:00:28.7]} 1-0

[Event "*** Titled Tuesday Blitz"]
[Site "Chess.com"]
[Date "2020.12.29"]
[Round "4"]
[White "Nadeev_Sergey"]
[Black "Savva09022009"]
[Result "1-0"]
[WhiteElo "2468"]
[BlackElo "2625"]
[TimeControl "180+1"]
[EndTime "10:39:02 PST"]
[Termination "Nadeev_Sergey won by checkmate"]

1. e4 {[%clk 0:03:00.9]} 1... c5 {[%clk 0:02:59.1]} 2. Nf3 {[%clk 0:03:01]} 2...
d6 {[%clk 0:02:54.7]} 3. d4 {[%clk 0:03:01.2]} 3... cxd4 {[%clk 0:02:55.6]} 4.
Nxd4 {[%clk 0:03:01.8]} 4... Nf6 {[%clk 0:02:56.1]} 5. Nc3 {[%clk 0:03:02.3]}
5... Nc6 {[%clk 0:02:55.9]} 6. Bg5 {[%clk 0:03:02.3]} 6... e6 {[%clk 0:02:55.2]}
7. Qd2 {[%clk 0:03:02]} 7... h6 {[%clk 0:02:52.5]} 8. Bh4 {[%clk 0:02:40.9]}
8... Nxe4 {[%clk 0:02:46.8]} 9. Nxe4 {[%clk 0:02:39.4]} 9... Qxh4 {[%clk
0:02:45.9]} 10. Qe3 {[%clk 0:02:02.4]} 10... Qd8 {[%clk 0:02:41.2]} 11. O-O-O
{[%clk 0:02:01.7]} 11... Be7 {[%clk 0:02:39.7]} 12. Bb5 {[%clk 0:02:00.5]} 12...
Bd7 {[%clk 0:02:38.5]} 13. Qg3 {[%clk 0:01:50.9]} 13... O-O {[%clk 0:01:53.4]}
14. Nxd6 {[%clk 0:01:47.8]} 14... Nxd4 {[%clk 0:01:50.5]} 15. Rxd4 {[%clk
0:01:45.9]} 15... Bxb5 {[%clk 0:01:49.1]} 16. Nf5 {[%clk 0:01:21.5]} 16... Bg5+
{[%clk 0:01:47]} 17. f4 {[%clk 0:01:21.6]} 17... Qf6 {[%clk 0:01:42]} 18. fxg5
{[%clk 0:01:20]} 18... Qxf5 {[%clk 0:01:33.5]} 19. gxh6 {[%clk 0:01:19.8]} 19...
Qg6 {[%clk 0:01:29.2]} 20. hxg7 {[%clk 0:01:16.8]} 20... Rfd8 {[%clk 0:01:28.1]}
21. Qh4 {[%clk 0:01:01.7]} 21... Kxg7 {[%clk 0:00:49.6]} 22. Rg4 {[%clk
0:00:55.7]} 22... Rd7 {[%clk 0:00:33.4]} 23. Rxg6+ {[%clk 0:00:54.5]} 23... fxg6
{[%clk 0:00:34.1]} 24. Rd1 {[%clk 0:00:52.7]} 24... Rc7 {[%clk 0:00:27.7]} 25.
Rd4 {[%clk 0:00:48.5]} 25... Rac8 {[%clk 0:00:25.3]} 26. Rd2 {[%clk 0:00:46.2]}
26... Rf8 {[%clk 0:00:17.6]} 27. Qd4+ {[%clk 0:00:43]} 27... Kg8 {[%clk
0:00:16.9]} 28. b3 {[%clk 0:00:36.9]} 28... Rcf7 {[%clk 0:00:13.5]} 29. Kb2
{[%clk 0:00:35.7]} 29... Bc6 {[%clk 0:00:13.9]} 30. Qg4 {[%clk 0:00:32.4]} 30...
Kg7 {[%clk 0:00:11]} 31. Qxe6 {[%clk 0:00:30.4]} 31... Rf6 {[%clk 0:00:11]} 32.
Qe5 {[%clk 0:00:30.3]} 32... Kh7 {[%clk 0:00:10]} 33. Rd4 {[%clk 0:00:28.8]}
33... R8f7 {[%clk 0:00:06.6]} 34. Rh4+ {[%clk 0:00:28.1]} 34... Kg8 {[%clk
0:00:05.6]} 35. Qg5 {[%clk 0:00:25.4]} 35... Rf8 {[%clk 0:00:05.3]} 36. Qh6
{[%clk 0:00:24.2]} 36... Kf7 {[%clk 0:00:05.6]} 37. Qh7+ {[%clk 0:00:23.1]}
37... Ke6 {[%clk 0:00:06]} 38. Rd4 {[%clk 0:00:22.7]} 38... R8f7 {[%clk
0:00:05.9]} 39. Qh3+ {[%clk 0:00:21.6]} 39... Ke7 {[%clk 0:00:05.6]} 40. Qc8
{[%clk 0:00:21.6]} 40... Rf5 {[%clk 0:00:04.9]} 41. Qd8+ {[%clk 0:00:21.2]}
41... Ke6 {[%clk 0:00:04.7]} 42. Qd6# {[%clk 0:00:21.9]} 1-0

[Event "*** Titled Tuesday Blitz"]
[Site "Chess.com"]
[Date "2020.12.29"]
[Round "4"]
[White "GM_LOADING"]
[Black "Witik"]
[Result "0-1"]
[WhiteElo "2497"]
[BlackElo "2715"]
[TimeControl "180+1"]
[EndTime "10:39:03 PST"]
[Termination "Witik won by resignation"]

1. d4 {[%clk 0:03:00.9]} 1... d5 {[%clk 0:02:58.4]} 2. c4 {[%clk 0:02:59.8]}
2... e6 {[%clk 0:02:58.7]} 3. Nc3 {[%clk 0:02:59.5]} 3... c6 {[%clk 0:02:59]} 4.
Nf3 {[%clk 0:02:56.7]} 4... dxc4 {[%clk 0:02:58.9]} 5. a4 {[%clk 0:02:56.4]}
5... Bb4 {[%clk 0:02:58.2]} 6. e4 {[%clk 0:02:56.2]} 6... Nf6 {[%clk 0:02:57.8]}
7. Qc2 {[%clk 0:02:52.8]} 7... b5 {[%clk 0:02:55.3]} 8. Bd2 {[%clk 0:02:49.4]}
8... a5 {[%clk 0:02:48.8]} 9. Be2 {[%clk 0:02:45]} 9... h6 {[%clk 0:02:21.7]}
10. O-O {[%clk 0:02:44.1]} 10... O-O {[%clk 0:02:19.5]} 11. Rfd1 {[%clk
0:02:21.7]} 11... Ba6 {[%clk 0:02:07.2]} 12. Be3 {[%clk 0:02:14.1]} 12... Qc7
{[%clk 0:01:04.6]} 13. Ne5 {[%clk 0:01:06.1]} 13... Nbd7 {[%clk 0:00:57.9]} 14.
f4 {[%clk 0:01:05.5]} 14... Rac8 {[%clk 0:00:31.7]} 15. Bf3 {[%clk 0:01:00.5]}
15... bxa4 {[%clk 0:00:27.6]} 16. Nxa4 {[%clk 0:00:54.5]} 16... c5 {[%clk
0:00:27.7]} 17. Nxd7 {[%clk 0:00:46.5]} 17... Nxd7 {[%clk 0:00:27.8]} 18. d5
{[%clk 0:00:41.8]} 18... exd5 {[%clk 0:00:27.8]} 19. Rxd5 {[%clk 0:00:37.2]}
19... Nf6 {[%clk 0:00:20]} 20. Rdd1 {[%clk 0:00:33.9]} 20... Bb7 {[%clk
0:00:15.3]} 21. Nc3 {[%clk 0:00:20.5]} 21... Rfe8 {[%clk 0:00:14.2]} 22. e5
{[%clk 0:00:18.7]} 22... Bxf3 {[%clk 0:00:13.4]} 23. gxf3 {[%clk 0:00:19.6]}
23... Bxc3 {[%clk 0:00:12.5]} 24. Qxc3 {[%clk 0:00:18.7]} 24... Nh5 {[%clk
0:00:12.8]} 25. Qxc4 {[%clk 0:00:18.7]} 25... Qc6 {[%clk 0:00:13]} 26. Kf2
{[%clk 0:00:15.1]} 26... Rb8 {[%clk 0:00:10.7]} 27. Rd2 {[%clk 0:00:14.2]} 27...
Rec8 {[%clk 0:00:07.2]} 28. Rad1 {[%clk 0:00:11.9]} 28... Rb4 {[%clk 0:00:06.3]}
29. Qc2 {[%clk 0:00:09.9]} 29... g6 {[%clk 0:00:06.2]} 30. Rd6 {[%clk
0:00:09.1]} 30... Qb5 {[%clk 0:00:05.7]} 31. e6 {[%clk 0:00:09.1]} 31... Rxb2
{[%clk 0:00:05.5]} 32. exf7+ {[%clk 0:00:09.2]} 32... Kf8 {[%clk 0:00:04.7]} 33.
Rd8+ {[%clk 0:00:09.1]} 33... Rxd8 {[%clk 0:00:05.2]} 34. Rxd8+ {[%clk 0:00:10]}
34... Kxf7 {[%clk 0:00:06.1]} 35. Rd7+ {[%clk 0:00:10.6]} 35... Ke8 {[%clk
0:00:05.5]} 0-1

[Event "*** Titled Tuesday Blitz"]
[Site "Chess.com"]
[Date "2020.12.29"]
[Round "4"]
[White "UCantHandleDenker"]
[Black "ferdipy"]
[Result "0-1"]
[WhiteElo "2567"]
[BlackElo "2190"]
[TimeControl "180+1"]
[EndTime "10:39:04 PST"]
[Termination "ferdipy won on time"]

1. Nf3 {[%clk 0:03:00.9]} 1... c5 {[%clk 0:02:59.9]} 2. g3 {[%clk 0:03:01.1]}
2... Nc6 {[%clk 0:03:00.3]} 3. Bg2 {[%clk 0:02:59.6]} 3... g6 {[%clk 0:03:00.8]}
4. O-O {[%clk 0:02:59.4]} 4... Bg7 {[%clk 0:03:01.3]} 5. d3 {[%clk 0:03:00]}
5... e5 {[%clk 0:03:01.7]} 6. Nbd2 {[%clk 0:03:00.6]} 6... Nge7 {[%clk
0:03:02.2]} 7. e4 {[%clk 0:03:01.1]} 7... O-O {[%clk 0:03:02.3]} 8. c3 {[%clk
0:03:01.5]} 8... d6 {[%clk 0:03:02.5]} 9. a3 {[%clk 0:03:01.2]} 9... h6 {[%clk
0:03:02.9]} 10. b4 {[%clk 0:03:01.1]} 10... b6 {[%clk 0:03:01]} 11. Nb3 {[%clk
0:03:00.8]} 11... Be6 {[%clk 0:03:01]} 12. b5 {[%clk 0:03:00.7]} 12... Nb8
{[%clk 0:02:59.9]} 13. c4 {[%clk 0:03:00.5]} 13... f5 {[%clk 0:02:54.7]} 14.
exf5 {[%clk 0:02:58.3]} 14... gxf5 {[%clk 0:02:53]} 15. Nxe5 {[%clk 0:02:56.6]}
15... Bxe5 {[%clk 0:02:45.8]} 16. Bxa8 {[%clk 0:02:55.9]} 16... Bxa1 {[%clk
0:02:45.5]} 17. Nxa1 {[%clk 0:02:55.9]} 17... f4 {[%clk 0:02:42]} 18. Bxf4
{[%clk 0:02:43.7]} 18... d5 {[%clk 0:02:37.8]} 19. Bxh6 {[%clk 0:02:41.6]} 19...
Rf6 {[%clk 0:02:35.4]} 20. Bg5 {[%clk 0:02:41.2]} 20... Rg6 {[%clk 0:02:35.7]}
21. Bxe7 {[%clk 0:02:40.5]} 21... Qxe7 {[%clk 0:02:35.4]} 22. Bxd5 {[%clk
0:02:34.4]} 22... Bxd5 {[%clk 0:02:28.4]} 23. cxd5 {[%clk 0:02:34.4]} 23... Nd7
{[%clk 0:02:29.3]} 24. Re1 {[%clk 0:02:23.1]} 24... Qf6 {[%clk 0:02:24]} 25. Qe2
{[%clk 0:02:17.2]} 25... Nf8 {[%clk 0:02:19.5]} 26. Nc2 {[%clk 0:02:14.3]} 26...
Qc3 {[%clk 0:02:15.7]} 27. Ne3 {[%clk 0:02:09.8]} 27... Qxa3 {[%clk 0:02:12.6]}
28. Nc4 {[%clk 0:02:09.2]} 28... Qc3 {[%clk 0:02:11.5]} 29. d6 {[%clk
0:02:07.5]} 29... Qd4 {[%clk 0:02:10]} 30. Qe4 {[%clk 0:01:58.9]} 30... Re6
{[%clk 0:01:59.5]} 31. Qxe6+ {[%clk 0:01:23.6]} 31... Nxe6 {[%clk 0:01:59.5]}
32. Rxe6 {[%clk 0:01:22.9]} 32... Qxd3 {[%clk 0:01:59.9]} 33. Re8+ {[%clk
0:01:11.8]} 33... Kg7 {[%clk 0:01:59.8]} 34. Ne3 {[%clk 0:01:03.3]} 34... Kf7
{[%clk 0:01:50]} 35. Re7+ {[%clk 0:00:59]} 35... Kf8 {[%clk 0:01:50.5]} 36. Rd7
{[%clk 0:00:39.3]} 36... Ke8 {[%clk 0:01:45.5]} 37. Rxa7 {[%clk 0:00:32.5]}
37... Qxd6 {[%clk 0:01:44.7]} 38. h4 {[%clk 0:00:32.6]} 38... c4 {[%clk
0:01:33.8]} 39. Nxc4 {[%clk 0:00:25.9]} 39... Qd1+ {[%clk 0:01:33.3]} 40. Kh2
{[%clk 0:00:23.1]} 40... Qe2 {[%clk 0:01:30.4]} 41. Nd6+ {[%clk 0:00:21.6]}
41... Kf8 {[%clk 0:01:30.6]} 42. Rf7+ {[%clk 0:00:19.6]} 42... Kg8 {[%clk
0:01:30.6]} 43. Rf6 {[%clk 0:00:20.2]} 43... Qe5 {[%clk 0:01:28.5]} 44. Rg6+
{[%clk 0:00:12.2]} 44... Kh7 {[%clk 0:01:26.2]} 45. Nf7 {[%clk 0:00:07.8]} 45...
Qf5 {[%clk 0:01:22]} 46. Rh6+ {[%clk 0:00:05.3]} 46... Kg7 {[%clk 0:01:22.4]}
47. Rxb6 {[%clk 0:00:05.3]} 47... Qxf2+ {[%clk 0:01:21.2]} 48. Kh3 {[%clk
0:00:05.7]} 48... Qxb6 {[%clk 0:01:21.2]} 49. Ng5 {[%clk 0:00:06]} 49... Qxb5
{[%clk 0:01:20.8]} 50. Kg4 {[%clk 0:00:06.4]} 50... Qc4+ {[%clk 0:01:19.5]} 51.
Kh3 {[%clk 0:00:06.6]} 51... Qe2 {[%clk 0:01:16.6]} 52. g4 {[%clk 0:00:02.7]}
52... Qe3+ {[%clk 0:01:13.8]} 53. Kg2 {[%clk 0:00:02.6]} 53... Kg6 {[%clk
0:01:11.9]} 54. Kh2 {[%clk 0:00:01.8]} 54... Qf2+ {[%clk 0:01:09.1]} 55. Kh3
{[%clk 0:00:01.8]} 55... Qf4 {[%clk 0:01:04.5]} 0-1

[Event "*** Titled Tuesday Blitz"]
[Site "Chess.com"]
[Date "2020.12.29"]
[Round "4"]
[White "rpragchess"]
[Black "arctic_t00"]
[Result "1-0"]
[WhiteElo "2849"]
[BlackElo "2618"]
[TimeControl "180+1"]
[EndTime "10:39:06 PST"]
[Termination "rpragchess won on time"]

1. Nf3 {[%clk 0:03:00.9]} 1... Nf6 {[%clk 0:02:57.2]} 2. b3 {[%clk 0:03:00.1]}
2... g6 {[%clk 0:02:57.2]} 3. Bb2 {[%clk 0:03:00.2]} 3... Bg7 {[%clk 0:02:57.8]}
4. e3 {[%clk 0:02:58.9]} 4... O-O {[%clk 0:02:57.5]} 5. d4 {[%clk 0:02:58.4]}
5... d6 {[%clk 0:02:54.6]} 6. Be2 {[%clk 0:02:56.3]} 6... a5 {[%clk 0:02:51.1]}
7. c4 {[%clk 0:02:52.6]} 7... a4 {[%clk 0:02:47.2]} 8. bxa4 {[%clk 0:02:51.1]}
8... c6 {[%clk 0:02:45.9]} 9. O-O {[%clk 0:02:49]} 9... Nbd7 {[%clk 0:02:36.6]}
10. Nc3 {[%clk 0:02:48.9]} 10... e5 {[%clk 0:02:32.5]} 11. Ba3 {[%clk
0:02:47.9]} 11... e4 {[%clk 0:02:12.1]} 12. Nd2 {[%clk 0:02:46.4]} 12... Qe7
{[%clk 0:02:12.1]} 13. Rb1 {[%clk 0:02:34.7]} 13... Re8 {[%clk 0:02:11.2]} 14.
Qc2 {[%clk 0:02:33.5]} 14... h5 {[%clk 0:02:10.7]} 15. Rbe1 {[%clk 0:02:17.4]}
15... h4 {[%clk 0:02:04.2]} 16. f3 {[%clk 0:02:15.8]} 16... exf3 {[%clk
0:01:44.5]} 17. Bxf3 {[%clk 0:02:14.3]} 17... c5 {[%clk 0:01:04.9]} 18. Nb5
{[%clk 0:01:42.7]} 18... Nf8 {[%clk 0:00:49.9]} 19. Nb3 {[%clk 0:01:29.4]} 19...
Ne6 {[%clk 0:00:44.1]} 20. a5 {[%clk 0:01:29.5]} 20... h3 {[%clk 0:00:34.6]} 21.
g3 {[%clk 0:01:23.8]} 21... Rb8 {[%clk 0:00:32]} 22. Bd5 {[%clk 0:01:12.6]}
22... Bd7 {[%clk 0:00:29.7]} 23. Bxe6 {[%clk 0:01:07.1]} 23... Bxe6 {[%clk
0:00:23]} 24. dxc5 {[%clk 0:01:06.3]} 24... dxc5 {[%clk 0:00:14.5]} 25. Bxc5
{[%clk 0:00:58.6]} 25... Qd7 {[%clk 0:00:14.4]} 26. Rd1 {[%clk 0:00:58.5]} 26...
Qc6 {[%clk 0:00:14]} 27. Rd6 {[%clk 0:00:32.3]} 27... Qc8 {[%clk 0:00:09.5]} 28.
N5d4 {[%clk 0:00:29.5]} 28... Ng4 {[%clk 0:00:04]} 29. Qe2 {[%clk 0:00:23.5]}
29... Bd7 {[%clk 0:00:02.2]} 30. Nb5 {[%clk 0:00:19.1]} 30... Bxb5 {[%clk
0:00:02]} 31. cxb5 {[%clk 0:00:20]} 31... Ne5 {[%clk 0:00:02.2]} 32. Bd4 {[%clk
0:00:18.2]} 32... Bf8 {[%clk 0:00:02.1]} 33. Rd5 {[%clk 0:00:17.4]} 33... Bg7
{[%clk 0:00:01.6]} 34. a6 {[%clk 0:00:16.1]} 34... Qe6 {[%clk 0:00:01.8]} 35.
Rc5 {[%clk 0:00:15.3]} 35... Red8 {[%clk 0:00:02]} 36. a7 {[%clk 0:00:13.3]}
36... Ra8 {[%clk 0:00:02.1]} 37. Rc7 {[%clk 0:00:13.9]} 1-0

[Event "*** Titled Tuesday Blitz"]
[Site "Chess.com"]
[Date "2020.12.29"]
[Round "4"]
[White "Harsha_Bharathakoti"]
[Black "KhamzinOlzhas"]
[Result "1-0"]
[WhiteElo "2820"]
[BlackElo "2476"]
[TimeControl "180+1"]
[EndTime "10:39:07 PST"]
[Termination "Harsha_Bharathakoti won on time"]

1. c4 {[%clk 0:02:59.4]} 1... e5 {[%clk 0:02:54.8]} 2. g3 {[%clk 0:02:58.5]}
2... Nc6 {[%clk 0:02:46.3]} 3. Bg2 {[%clk 0:02:54.3]} 3... Nf6 {[%clk
0:02:46.6]} 4. Nc3 {[%clk 0:02:54.4]} 4... Bb4 {[%clk 0:02:45.8]} 5. Nd5 {[%clk
0:02:51.3]} 5... a5 {[%clk 0:02:45.3]} 6. Nf3 {[%clk 0:02:51.1]} 6... O-O {[%clk
0:02:44.6]} 7. O-O {[%clk 0:02:51.3]} 7... Re8 {[%clk 0:02:44.6]} 8. d3 {[%clk
0:02:48.8]} 8... Be7 {[%clk 0:02:38.9]} 9. Nd2 {[%clk 0:02:39.4]} 9... d6 {[%clk
0:02:37]} 10. b3 {[%clk 0:02:39.7]} 10... Nd4 {[%clk 0:02:33.9]} 11. e3 {[%clk
0:02:37.5]} 11... Ne6 {[%clk 0:02:33.3]} 12. Bb2 {[%clk 0:02:38]} 12... c6
{[%clk 0:02:32]} 13. Nxe7+ {[%clk 0:02:37]} 13... Qxe7 {[%clk 0:02:32.9]} 14. a3
{[%clk 0:02:26.1]} 14... Nc5 {[%clk 0:02:18.3]} 15. Qc2 {[%clk 0:02:21.3]} 15...
Bf5 {[%clk 0:02:17.1]} 16. e4 {[%clk 0:02:21.1]} 16... Bg4 {[%clk 0:02:14.7]}
17. h3 {[%clk 0:02:20.4]} 17... Be2 {[%clk 0:02:13.2]} 18. d4 {[%clk 0:02:10.5]}
18... Bxf1 {[%clk 0:02:07.4]} 19. Rxf1 {[%clk 0:02:08.7]} 19... exd4 {[%clk
0:02:01.9]} 20. Bxd4 {[%clk 0:02:06.5]} 20... Ne6 {[%clk 0:02:00.3]} 21. Bb2
{[%clk 0:02:01]} 21... Red8 {[%clk 0:01:56.8]} 22. Re1 {[%clk 0:01:56.8]} 22...
Nc5 {[%clk 0:01:53.1]} 23. Qc3 {[%clk 0:01:56.2]} 23... Qe5 {[%clk 0:01:43.9]}
24. Qc2 {[%clk 0:01:50.9]} 24... Qe7 {[%clk 0:01:38.8]} 25. Nf3 {[%clk
0:01:41.1]} 25... Ncd7 {[%clk 0:01:20.2]} 26. Nh4 {[%clk 0:01:39.4]} 26... Ne5
{[%clk 0:01:13.5]} 27. Nf5 {[%clk 0:01:38.4]} 27... Qe6 {[%clk 0:01:12.3]} 28.
f4 {[%clk 0:01:36.9]} 28... Ng6 {[%clk 0:01:08.1]} 29. Qc3 {[%clk 0:01:27]}
29... d5 {[%clk 0:00:52.9]} 30. Nxg7 {[%clk 0:00:47]} 30... d4 {[%clk
0:00:44.1]} 31. Nxe6 {[%clk 0:00:46.5]} 31... dxc3 {[%clk 0:00:43.9]} 32. Nxd8
{[%clk 0:00:47.4]} 32... cxb2 {[%clk 0:00:41.5]} 33. Nxb7 {[%clk 0:00:48.1]}
33... Ra7 {[%clk 0:00:15.5]} 34. Nc5 {[%clk 0:00:35.2]} 34... Re7 {[%clk
0:00:13.4]} 35. Rb1 {[%clk 0:00:32.5]} 35... Nd7 {[%clk 0:00:12]} 36. Nd3 {[%clk
0:00:28.8]} 36... Ngf8 {[%clk 0:00:06.5]} 37. Rxb2 {[%clk 0:00:29.3]} 37... Ne6
{[%clk 0:00:06.9]} 38. b4 {[%clk 0:00:29]} 38... Nd4 {[%clk 0:00:06]} 39. bxa5
{[%clk 0:00:28.2]} 39... Nf6 {[%clk 0:00:04.7]} 40. e5 {[%clk 0:00:27.9]} 40...
Nh5 {[%clk 0:00:05.1]} 41. Kf2 {[%clk 0:00:26]} 41... Ra7 {[%clk 0:00:05.4]} 42.
g4 {[%clk 0:00:25.3]} 42... Ng7 {[%clk 0:00:04.6]} 43. Ke3 {[%clk 0:00:25.8]}
1-0